bitfinex/quotes_SOLUSD_20250617
["timestamp","ask_amount","ask_price","bid_price","bid_amount"]
[1750198050160,13.23591927,147.77,147.73,23.6918703]
[1750198050350,39.23591927,147.77,147.73,23.6918703]
[1750198051067,39.23591927,147.77,147.73,33.39721896]
[1750198052268,35.70534866,147.77,147.73,33.39721896]
[1750198052932,35.70534866,147.77,147.73,29.33968872]
[1750198052933,26.0,147.77,147.73,29.33968872]
[1750198053368,26.0,147.77,147.74,5.64781842]
[1750198053859,26.0,147.77,147.73,23.6918703]
[1750198054173,5.64781842,147.76,147.73,23.6918703]
[1750198055060,31.64781842,147.77,147.73,29.33968872]
[1750198055245,26.0,147.77,147.73,29.33968872]
[1750198056143,31.64781842,147.77,147.73,29.33968872]
[1750198057162,6.07430313,147.76,147.73,6.7691058]
[1750198057377,5.64781842,147.74,147.72,12.88938189]
[1750198057574,5.64781842,147.73,147.72,12.88938189]
[1750198057874,5.64781842,147.73,147.72,6.12]
[1750198058170,19.07613357,147.76,147.72,6.12]
[1750198058468,5.64781842,147.73,147.72,6.12]
[1750198059182,6.07430313,147.73,147.72,6.12]
[1750198063467,5.64781842,147.73,147.72,6.12]
[1750198067780,6.07430313,147.73,147.72,6.12]
[1750198071582,26.0,147.73,147.72,6.12]
[1750198071793,31.64781842,147.73,147.72,6.12]
[1750198072790,35.17879545,147.73,147.72,6.12]
[1750198073489,35.17879545,147.73,147.71,6.76999973]
[1750198073698,5.64781842,147.72,147.7,6.77029072]
[1750198073987,5.64781842,147.71,147.7,6.77029072]
[1750198077479,5.64781842,147.72,147.7,6.77029072]
[1750198078095,29.53097703,147.73,147.7,6.77029072]
[1750198078300,5.64781842,147.72,147.7,6.77029072]
[1750198078592,5.64781842,147.71,147.7,6.77029072]
[1750198081197,5.64781842,147.72,147.7,6.77029072]
[1750198081506,179.54781842,147.76,147.71,5.64781842]
[1750198081808,179.54781842,147.76,147.7,6.77029072]
[1750198081809,153.54781842,147.76,147.72,5.64781842]
[1750198082197,5.06127525,147.75,147.71,5.64781842]
[1750198082402,153.54781842,147.76,147.71,5.64781842]
[1750198082587,5.06111597,147.75,147.71,5.64781842]
[1750198082772,153.54781842,147.76,147.71,5.64781842]
[1750198083797,153.54781842,147.76,147.72,6.76956404]
[1750198084001,5.64781842,147.75,147.72,6.76956404]
[1750198085209,5.64781842,147.73,147.72,6.76956404]
[1750198085378,5.64781842,147.74,147.72,6.76956404]
[1750198085568,5.64781842,147.73,147.7,6.7704807]
[1750198085774,5.64781842,147.71,147.7,6.7704807]
[1750198085977,5.64781842,147.71,147.69,12.89088007]
[1750198090401,5.64781842,147.72,147.69,12.89088007]
[1750198098525,5.64781842,147.7,147.69,12.89093912]
[1750198098811,31.64781842,147.71,147.69,12.89093912]
[1750198099015,5.64781842,147.73,147.69,12.89093912]
[1750198100414,5.06872773,147.72,147.69,12.89093912]
[1750198100630,5.64781842,147.71,147.69,12.89093912]
[1750198100792,5.64781842,147.72,147.69,12.89093912]
[1750198100991,174.32648471,147.74,147.69,12.89093912]
[1750198101236,5.06891934,147.73,147.69,12.89093912]
[1750198101531,10.71673776,147.72,147.69,12.89093912]
[1750198101693,5.64781842,147.72,147.69,12.89093912]
[1750198102516,5.07216007,147.71,147.69,12.89093912]
[1750198102818,5.64781842,147.72,147.69,12.89093912]
[1750198105626,174.04216157,147.74,147.69,12.89093912]
[1750198105925,10.7199177,147.73,147.69,12.89093912]
[1750198106130,5.07209928,147.72,147.69,12.89093912]
[1750198106303,5.64781842,147.73,147.69,12.89093912]
[1750198106503,5.07203362,147.72,147.69,12.89093912]
[1750198106711,5.64781842,147.73,147.69,12.89093912]
[1750198106911,5.07194089,147.72,147.69,35.46610536]
[1750198107201,5.64781842,147.73,147.69,35.46610536]
[1750198107426,5.07198359,147.72,147.69,35.46610536]
[1750198107608,5.64781842,147.73,147.69,35.46610536]
[1750198107817,5.07195867,147.72,147.69,35.46610536]
[1750198108017,5.64781842,147.73,147.69,35.46610536]
[1750198108327,5.07196852,147.72,147.69,35.46610536]
[1750198108529,153.54781842,147.74,147.69,35.46610536]
[1750198108714,5.07184872,147.73,147.69,35.46610536]
[1750198108913,5.07184872,147.72,147.69,35.46610536]
[1750198109212,153.54781842,147.74,147.69,35.46610536]
[1750198109413,5.07187312,147.73,147.69,35.46610536]
[1750198109720,5.07187312,147.72,147.69,35.46610536]
[1750198109920,153.54781842,147.74,147.69,35.46610536]
[1750198110124,5.07177626,147.73,147.69,35.46610536]
[1750198110315,5.07177626,147.72,147.69,35.46610536]
[1750198110517,153.54781842,147.74,147.69,35.46610536]
[1750198110718,10.71950431,147.73,147.69,35.46610536]
[1750198110918,5.07169656,147.72,147.69,35.46610536]
[1750198111233,5.64781842,147.73,147.69,35.46610536]
[1750198111413,5.64781842,147.74,147.7,5.64781842]
[1750198111620,5.07150089,147.73,147.7,5.64781842]
[1750198111832,5.64781842,147.75,147.7,5.64781842]
[1750198112010,5.07148953,147.74,147.7,5.64781842]
[1750198112212,5.07148953,147.73,147.7,5.64781842]
[1750198112412,5.64781842,147.75,147.7,5.64781842]
[1750198112630,5.07129854,147.74,147.7,5.64781842]
[1750198112820,5.07129854,147.73,147.7,5.64781842]
[1750198113021,5.64781842,147.75,147.7,5.64781842]
[1750198113225,5.07132562,147.74,147.7,5.64781842]
[1750198113421,5.07132562,147.73,147.71,6.77002234]
[1750198113639,5.64781842,147.75,147.71,6.77002234]
[1750198113815,5.07136149,147.74,147.71,12.41784076]
[1750198114016,5.64781842,147.75,147.71,6.77002234]
[1750198114950,5.64781842,147.75,147.71,23.69507819]
[1750198116626,5.64781842,147.75,147.71,29.34289661]
[1750198117526,5.64781842,147.75,147.71,23.69507819]
[1750198118548,5.64781842,147.75,147.71,29.34289661]
[1750198118850,5.64781842,147.76,147.72,5.64781842]
[1750198119649,5.64781842,147.76,147.73,6.7691058]
[1750198120031,151.42975954,147.79,147.74,5.64781842]
[1750198120249,39.13527283,147.82,147.78,5.64781842]
[1750198120250,12.07995973,147.82,147.78,5.64781842]
[1750198120424,12.07995973,147.82,147.75,6.1]
[1750198120425,12.07995973,147.82,147.81,5.64781842]
[1750198120623,5.64781842,147.87,147.81,11.74781842]
[1750198120931,5.06115593,147.86,147.83,5.64781842]
[1750198121131,5.06115593,147.85,147.83,5.64781842]
[1750198121329,5.06115593,147.86,147.81,6.1]
[1750198121545,5.64781842,147.87,147.82,5.64781842]
[1750198121851,5.05287566,147.87,147.83,12.41234524]
[1750198122152,5.64781842,147.88,147.84,5.64781842]
[1750198122946,5.64781842,147.88,147.83,23.67584387]
[1750198123158,5.64781842,147.88,147.84,5.64781842]
[1750198124227,5.64781842,147.88,147.85,6.76361176]
[1750198124651,153.54781842,147.89,147.85,12.41143018]
[1750198125319,5.64781842,147.9,147.86,5.64781842]
[1750198125634,5.64781842,147.9,147.87,6.1]
[1750198126223,5.64781842,147.89,147.87,6.1]
[1750198126755,5.64781842,147.89,147.87,12.8625257]
[1750198127058,31.64781842,147.9,147.87,12.8625257]
[1750198127636,26.0,147.93,147.89,5.64781842]
[1750198127946,31.64781842,147.93,147.89,5.64781842]
[1750198128348,31.64781842,147.93,147.9,6.76132521]
[1750198128545,11.63560785,147.94,147.9,12.40914363]
[1750198128716,17.28342627,147.94,147.9,12.40914363]
[1750198128922,11.63560785,147.94,147.91,5.64781842]
[1750198129124,1.5077,147.97,147.9,23.66463825]
[1750198129430,5.64781842,147.95,147.91,5.64781842]
[1750198129935,10.68077993,147.97,147.92,5.64781842]
[1750198130137,10.68077993,147.97,147.93,6.08]
[1750198130365,10.68077993,147.97,147.94,6.75949709]
[1750198130655,3.52526151,147.97,147.94,6.75949709]
[1750198130867,5.64781842,147.97,147.94,6.75949709]
[1750198131030,5.64781842,147.98,147.94,6.75949709]
[1750198131639,9.17257263,147.99,147.94,12.40731551]
[1750198131852,5.64781842,147.99,147.94,12.40731551]
[1750198132037,5.64781842,147.99,147.95,5.64781842]
[1750198132360,5.64781842,147.99,147.96,6.7585834]
[1750198132739,31.64781842,148.01,147.96,6.7585834]
[1750198133122,31.64781842,148.01,147.96,12.40640182]
[1750198133321,5.64781842,148.0,147.96,12.40640182]
[1750198135967,5.64781842,148.02,147.97,5.64781842]
[1750198136134,5.64781842,148.02,147.98,5.64781842]
[1750198136460,5.64781842,148.0,147.99,6.08]
[1750198136833,0.42648471,147.99,147.95,6.08]
[1750198137052,5.64781842,147.96,147.95,6.08]
[1750198137271,31.64781842,147.98,147.95,6.08]
[1750198137852,5.64781842,147.98,147.95,12.83864007]
[1750198138233,5.64781842,147.97,147.95,12.83864007]
[1750198139852,1.5492,147.99,147.95,12.83864007]
[1750198139853,5.64781842,147.96,147.95,6.08]
[1750198140056,5.64781842,147.96,147.94,12.83944252]
[1750198140266,8.59083579,147.99,147.94,6.08]
[1750198140267,5.64781842,147.95,147.94,6.08]
[1750198140631,0.42648471,147.94,147.89,6.08]
[1750198140831,5.64781842,147.92,147.89,6.08]
[1750198141043,5.64781842,147.91,147.89,6.08]
[1750198141482,5.64781842,147.9,147.89,6.08]
[1750198142379,12.83562834,147.9,147.89,6.08]
[1750198143039,38.83562834,147.9,147.89,6.08]
[1750198143659,32.07430313,147.9,147.89,6.08]
[1750198144649,26.42648471,147.9,147.89,6.08]
[1750198144854,32.07430313,147.9,147.89,6.08]
[1750198148245,38.83562834,147.9,147.89,6.08]
[1750198149847,32.07430313,147.9,147.89,6.08]
[1750198151284,26.42648471,147.9,147.89,6.08]
[1750198151463,32.07430313,147.9,147.89,6.08]
[1750198152661,26.42648471,147.9,147.89,6.08]
[1750198152856,31.64781842,147.9,147.89,12.8417824]
[1750198153183,5.64781842,147.9,147.89,12.8417824]
[1750198154785,173.9,147.93,147.89,12.8417824]
[1750198154970,5.64781842,147.91,147.89,12.8417824]
[1750198155351,5.64781842,147.9,147.89,12.8417824]
[1750198155548,31.64781842,147.9,147.84,6.76406926]
[1750198155771,26.0,147.9,147.85,6.08]
[1750198156377,26.0,147.9,147.86,6.76315433]
[1750198156558,29.52729766,147.9,147.86,6.76315433]
[1750198157063,5.64781842,147.87,147.86,6.76315433]
[1750198157658,5.64781842,147.87,147.85,12.84346779]
[1750198159052,5.64781842,147.88,147.85,12.84346779]
[1750198159461,5.64781842,147.88,147.85,29.75249721]
[1750198159861,5.64781842,147.86,147.85,29.75249721]
[1750198160267,5.64781842,147.86,147.85,12.84346779]
[1750198161072,5.64781842,147.87,147.85,12.84346779]
[1750198163878,5.64781842,147.87,147.85,29.75249721]
[1750198165483,5.64781842,147.88,147.85,29.75249721]
[1750198166065,5.03343494,147.89,147.85,29.75249721]
[1750198166274,5.64781842,147.88,147.85,29.75249721]
[1750198167373,5.03427526,147.89,147.85,29.75249721]
[1750198167374,5.64781842,147.89,147.85,29.75249721]
[1750198167567,3.52729766,147.9,147.85,29.75249721]
[1750198167768,5.64781842,147.89,147.85,29.75249721]
[1750198168161,5.64781842,147.88,147.85,29.75249721]
[1750198170983,5.64781842,147.87,147.85,29.75249721]
[1750198171275,5.64781842,147.88,147.85,29.75249721]
[1750198172991,5.64781842,147.87,147.85,29.75249721]
[1750198173191,5.64781842,147.88,147.85,29.75249721]
[1750198174886,5.64781842,147.87,147.85,29.75249721]
[1750198175787,5.64781842,147.86,147.85,12.84346779]
[1750198176588,5.64781842,147.86,147.85,6.08]
[1750198176980,6.07430313,147.86,147.85,6.08]
[1750198177681,12.83745746,147.86,147.85,6.08]
[1750198178193,0.42648471,147.85,147.81,6.76525234]
[1750198178393,5.64781842,147.82,147.81,6.76525234]
[1750198179103,5.64781842,147.84,147.81,6.76525234]
[1750198179901,5.64781842,147.84,147.81,23.67885764]
[1750198181397,5.64781842,147.85,147.81,23.67885764]
[1750198184211,5.64781842,147.84,147.81,23.67885764]
[1750198185086,5.64781842,147.85,147.81,29.32667606]
[1750198185295,5.64781842,147.85,147.81,23.67885764]
[1750198185482,10.7066182,147.86,147.81,29.32667606]
[1750198185686,5.64781842,147.87,147.82,5.64781842]
[1750198187079,5.64781842,147.87,147.81,23.67885764]
[1750198187397,5.64781842,147.86,147.81,29.32667606]
[1750198188183,5.64781842,147.86,147.82,5.64781842]
[1750198188482,5.64781842,147.86,147.83,6.06]
[1750198189393,5.64781842,147.86,147.84,6.76406926]
[1750198190178,5.64781842,147.87,147.84,23.67424242]
[1750198190384,153.54781842,147.89,147.84,29.32206084]
[1750198190683,5.05942825,147.88,147.84,29.32206084]
[1750198190892,153.54781842,147.89,147.84,29.32206084]
[1750198191096,10.70724634,147.88,147.84,29.32206084]
[1750198191304,147.9,147.89,147.84,29.32206084]
[1750198191305,153.54781842,147.89,147.84,29.32206084]
[1750198191505,5.05946783,147.88,147.84,29.32206084]
[1750198191712,153.54781842,147.89,147.84,29.32206084]
[1750198191912,5.05946783,147.88,147.84,29.32206084]
[1750198192115,153.54781842,147.89,147.84,29.32206084]
[1750198192415,5.05947754,147.88,147.84,29.32206084]
[1750198192586,153.54781842,147.89,147.84,29.32206084]
[1750198192788,4.55949956,147.88,147.84,29.32206084]
[1750198193115,153.54781842,147.89,147.84,29.32206084]
[1750198193292,147.9,147.89,147.85,5.64781842]
[1750198193497,5.64781842,147.9,147.86,23.67104016]
[1750198193702,26.0,147.92,147.86,23.67104016]
[1750198193907,31.64781842,147.92,147.87,5.64781842]
[1750198194097,5.64781842,147.92,147.87,5.64781842]
[1750198195187,148.04216157,147.93,147.86,23.67104016]
[1750198195387,5.64781842,147.91,147.87,5.64781842]
[1750198195596,5.64781842,147.91,147.88,6.76223965]
[1750198195895,5.64781842,147.9,147.89,6.06]
[1750198196489,5.64781842,147.91,147.89,6.06]
[1750198197344,5.64781842,147.91,147.9,6.76132521]
[1750198199014,147.9,147.93,147.9,6.76132521]
[1750198199193,5.64781842,147.92,147.9,6.76132521]
[1750198200712,5.64781842,147.93,147.9,6.76132521]
[1750198200913,5.64781842,147.94,147.9,6.76132521]
[1750198201107,5.64781842,147.93,147.9,23.66463825]
[1750198202606,5.64781842,147.94,147.9,23.66463825]
[1750198203117,5.64781842,147.94,147.9,29.31245667]
[1750198203527,5.64781842,147.94,147.9,23.66463825]
[1750198203905,5.64781842,147.93,147.9,23.66463825]
[1750198204101,5.64781842,147.94,147.9,23.66463825]
[1750198205309,5.64781842,147.91,147.9,6.76132521]
[1750198209705,5.64781842,147.91,147.89,6.06]
[1750198209905,6.07430313,147.9,147.89,6.06]
[1750198210131,11.12129955,147.9,147.89,6.06]
[1750198212525,17.88262476,147.9,147.89,6.06]
[1750198212843,26.0,147.87,147.84,6.06]
[1750198213140,5.64781842,147.85,147.84,6.06]
[1750198215940,5.64781842,147.85,147.84,12.82406926]
[1750198216147,5.64781842,147.86,147.84,12.82406926]
[1750198217018,148.04216157,147.89,147.84,12.82406926]
[1750198217214,5.64781842,147.87,147.84,12.82406926]
[1750198220338,5.64781842,147.87,147.84,29.73424242]
[1750198220540,5.64781842,147.88,147.84,29.73424242]
[1750198221830,147.9,147.89,147.84,29.73424242]
[1750198222148,5.64781842,147.88,147.84,29.73424242]
[1750198222830,31.04636238,147.9,147.84,35.38206084]
[1750198223150,31.64781842,147.9,147.85,5.64781842]
[1750198223353,10.6941808,147.9,147.85,5.64781842]
[1750198223646,5.64781842,147.9,147.85,5.64781842]
[1750198223828,10.6941808,147.9,147.85,5.64781842]
[1750198224026,5.64781842,147.9,147.86,23.67104016]
[1750198224222,10.6941808,147.9,147.86,23.67104016]
[1750198224423,5.64781842,147.9,147.86,23.67104016]
[1750198224623,10.6941808,147.9,147.86,23.67104016]
[1750198224855,5.64781842,147.9,147.86,23.67104016]
[1750198225053,5.04636238,147.9,147.87,5.64781842]
[1750198225234,5.64781842,147.91,147.87,5.64781842]
[1750198225728,10.6941808,147.92,147.88,6.76223965]
[1750198225923,5.64781842,147.92,147.88,6.76223965]
[1750198226325,5.64781842,147.91,147.88,6.76223965]
[1750198226547,5.64781842,147.89,147.88,6.76223965]
[1750198226939,5.64781842,147.89,147.85,6.76361176]
[1750198227147,5.64781842,147.87,147.85,6.76361176]
[1750198228232,5.64781842,147.86,147.84,12.82401017]
[1750198228433,10.69603882,147.85,147.81,6.76524677]
[1750198228637,5.64781842,147.82,147.81,12.80524677]
[1750198229252,5.64781842,147.84,147.81,12.80524677]
[1750198229724,5.05111116,147.86,147.81,12.80524677]
[1750198229725,5.64781842,147.83,147.81,12.80524677]
[1750198230958,5.64781842,147.83,147.81,12.80524677]
[1750198232336,5.64781842,147.83,147.81,6.76524677]
[1750198232541,0.42648471,147.81,147.77,6.04]
[1750198232746,5.64781842,147.78,147.77,6.04]
[1750198234161,11.57995998,147.78,147.77,6.04]
[1750198234363,44.48893708,147.78,147.77,6.04]
[1750198234745,31.93214156,147.78,147.77,6.04]
[1750198235147,31.93214156,147.78,147.68,6.0768]
[1750198235148,0.14216157,147.73,147.69,6.04]
[1750198235470,5.64781842,147.7,147.69,6.04]
[1750198235845,5.64781842,147.7,147.69,12.81093912]
[1750198236238,5.64781842,147.7,147.69,6.04]
[1750198238487,11.29563684,147.7,147.69,6.04]
[1750198238638,5.64781842,147.7,147.69,6.04]
[1750198238942,5.64781842,147.72,147.69,12.81093912]
[1750198239262,5.64781842,147.71,147.69,12.81093912]
[1750198240031,5.64781842,147.73,147.69,12.81093912]
[1750198240249,5.64781842,147.78,147.72,5.64781842]
[1750198240465,5.64781842,147.79,147.74,5.64781842]
[1750198240641,5.64781842,147.78,147.75,6.04]
[1750198241038,5.64781842,147.76,147.75,6.04]
[1750198241241,5.93214156,147.76,147.75,6.04]
[1750198242965,9.97019364,147.76,147.75,6.04]
[1750198243543,16.73792509,147.76,147.75,6.04]
[1750198243863,9.97019364,147.76,147.75,6.04]
[1750198245148,44.933972,147.75,147.7,6.7704807]
[1750198245349,9.6858705,147.71,147.7,6.7704807]
[1750198245563,9.6858705,147.72,147.7,6.7704807]
[1750198246364,9.6858705,147.71,147.7,6.7704807]
[1750198247180,9.6858705,147.72,147.7,6.7704807]
[1750198248065,9.6858705,147.71,147.7,6.7704807]
[1750198248267,9.6858705,147.71,147.69,6.06]
[1750198248470,9.6858705,147.7,147.69,12.83092318]
[1750198249348,0.28432314,147.72,147.69,6.06]
[1750198249567,9.6858705,147.7,147.69,6.06]
[1750198251285,10.11235521,147.7,147.69,6.06]
[1750198251450,28.76200407,147.7,147.69,6.06]
[1750198251653,10.11235521,147.7,147.69,6.06]
[1750198253580,26.0,147.66,147.58,50.81989428]
[1750198253774,9.6858705,147.64,147.61,6.04]
[1750198254185,9.6858705,147.65,147.61,6.04]
[1750198254783,9.6858705,147.64,147.62,6.77414984]
[1750198255168,26.0,147.66,147.62,6.77414984]
[1750198255477,9.6858705,147.64,147.62,6.77414984]
[1750198256581,9.6858705,147.67,147.63,9.6858705]
[1750198256765,9.6858705,147.71,147.66,9.6858705]
[1750198256966,9.6858705,147.7,147.67,6.04]
[1750198257871,9.6858705,147.7,147.68,6.77139761]
[1750198260263,9.6858705,147.69,147.67,12.81170497]
[1750198260464,9.6858705,147.68,147.67,12.81170497]
[1750198260683,9.6858705,147.69,147.67,12.81170497]
[1750198260884,9.6858705,147.71,147.67,22.49757547]
[1750198261091,9.6858705,147.71,147.67,12.81170497]
[1750198261276,9.6858705,147.71,147.67,22.49757547]
[1750198261789,9.6858705,147.71,147.67,12.81170497]
[1750198261987,9.6858705,147.7,147.67,12.81170497]
[1750198262887,173.9,147.72,147.67,29.74134538]
[1750198263069,9.6858705,147.71,147.67,29.74134538]
[1750198263267,9.6858705,147.7,147.67,29.74134538]
[1750198263467,9.6858705,147.71,147.67,29.74134538]
[1750198264593,9.6858705,147.71,147.67,39.42721588]
[1750198265088,9.6858705,147.71,147.67,29.74134538]
[1750198266384,9.6858705,147.7,147.67,29.74134538]
[1750198266894,5.65346822,147.7,147.67,29.74134538]
[1750198267393,5.65346822,147.7,147.67,12.81170497]
[1750198267597,5.65346822,147.69,147.67,12.81170497]
[1750198268169,5.65346822,147.68,147.67,12.81170497]
[1750198268376,5.65346822,147.68,147.67,6.04]
[1750198270173,5.65346822,147.68,147.67,12.81185616]
[1750198270790,5.65346822,147.69,147.67,12.81185616]
[1750198271508,151.43214491,147.72,147.68,5.65346822]
[1750198271824,147.9,147.76,147.71,5.65346822]
[1750198272004,6.24437355,147.82,147.74,5.65346822]
[1750198272005,5.65346822,147.79,147.74,5.65346822]
[1750198272317,5.65346822,147.79,147.75,11.69346822]
[1750198272782,5.65346822,147.79,147.75,6.04]
[1750198273298,5.65346822,147.78,147.76,6.76773145]
[1750198274807,9.68103088,147.78,147.76,6.76773145]
[1750198274989,9.68103088,147.79,147.76,6.76773145]
[1750198275185,40.70504315,147.8,147.76,6.76773145]
[1750198275594,35.68103088,147.8,147.76,6.76773145]
[1750198275804,157.58103088,147.81,147.76,33.36809097]
[1750198276005,9.68103088,147.81,147.77,9.68103088]
[1750198276180,5.03305564,147.81,147.77,9.68103088]
[1750198277096,14.71408652,147.82,147.77,9.68103088]
[1750198277290,5.03305564,147.81,147.77,9.68103088]
[1750198277495,5.03789466,147.81,147.78,6.76681553]
[1750198279210,9.68103088,147.8,147.76,6.76773145]
[1750198279391,14.71892554,147.8,147.76,6.76773145]
[1750198279588,9.68103088,147.82,147.77,9.68103088]
[1750198279791,9.68103088,147.82,147.78,9.68103088]
[1750198279997,14.71851436,147.82,147.78,9.68103088]
[1750198280216,9.68103088,147.82,147.77,9.68103088]
[1750198280414,14.71851436,147.82,147.77,9.68103088]
[1750198280718,9.68103088,147.82,147.78,6.76681553]
[1750198283014,36.19947083,147.84,147.78,6.76681553]
[1750198283015,9.68103088,147.81,147.78,6.76681553]
[1750198284318,9.68103088,147.81,147.77,6.76727346]
[1750198284612,9.68103088,147.82,147.77,33.366488]
[1750198284941,36.19947083,147.84,147.78,9.68103088]
[1750198285095,9.68103088,147.83,147.78,9.68103088]
[1750198286122,9.68103088,147.83,147.79,6.76635766]
[1750198286309,9.68103088,147.83,147.79,16.44738854]
[1750198287621,10.19947083,147.84,147.81,9.68103088]
[1750198287794,10.19947083,147.84,147.83,9.68103088]
[1750198289602,10.19947083,147.84,147.83,16.4455577]
[1750198289802,11.33863088,147.89,147.83,16.4455577]
[1750198290006,11.33863088,147.89,147.85,9.68103088]
[1750198290415,11.33863088,147.89,147.84,9.68103088]
[1750198291509,11.33863088,147.89,147.85,6.76361176]
[1750198294130,9.68103088,147.88,147.85,6.76361176]
[1750198294332,9.68103088,147.87,147.85,6.76361176]
[1750198294964,5.6408212,147.87,147.85,6.76361176]
[1750198295511,5.6408212,147.88,147.85,6.76361176]
[1750198296224,26.0,147.89,147.86,5.6408212]
[1750198296627,26.0,147.89,147.85,29.31346238]
[1750198298143,179.5408212,147.92,147.87,5.6408212]
[1750198298326,153.5408212,147.92,147.88,11.6808212]
[1750198298523,5.6408212,147.91,147.88,6.04]
[1750198298720,147.9,147.92,147.88,6.04]
[1750198299022,153.5408212,147.92,147.88,6.04]
[1750198299227,153.5408212,147.92,147.88,11.6808212]
[1750198300034,153.5408212,147.92,147.89,6.7617824]
[1750198300226,5.6408212,147.91,147.89,6.7617824]
[1750198301149,5.6408212,147.9,147.88,12.80206807]
[1750198301351,5.6408212,147.89,147.88,12.80206807]
[1750198301727,5.92514434,147.91,147.88,6.04]
[1750198302042,5.6408212,147.89,147.88,6.04]
[1750198303624,5.92514434,147.89,147.88,6.04]
[1750198303824,12.68692674,147.89,147.88,6.04]
[1750198304228,5.92514434,147.89,147.88,6.04]
[1750198304642,12.68692674,147.89,147.88,6.04]
[1750198305850,31.47873717,147.89,147.81,6.76507389]
[1750198306024,26.0,147.86,147.83,6.04]
[1750198307032,26.0,147.86,147.83,12.80440919]
[1750198307346,5.6408212,147.86,147.83,12.80440919]
[1750198307547,5.6408212,147.85,147.83,12.80440919]
[1750198310647,26.0,147.88,147.83,12.80440919]
[1750198310825,26.0,147.88,147.84,5.6408212]
[1750198310826,31.6408212,147.88,147.84,5.6408212]
[1750198311026,31.6408212,147.88,147.83,35.35654744]
[1750198312234,5.6408212,147.87,147.83,29.71572624]
[1750198312547,5.6408212,147.86,147.83,29.71572624]
[1750198312935,5.6408212,147.87,147.83,29.71572624]
[1750198314760,5.6408212,147.87,147.83,35.35654744]
[1750198315131,5.6408212,147.89,147.84,5.6408212]
[1750198315433,10.66656496,147.89,147.85,5.6408212]
[1750198315628,5.6408212,147.89,147.85,5.6408212]
[1750198316063,5.6408212,147.89,147.84,5.6408212]
[1750198316424,5.6408212,147.89,147.85,6.76361176]
[1750198316626,5.6408212,147.9,147.86,5.6408212]
[1750198316830,5.6408212,147.89,147.85,29.31346238]
[1750198317247,10.67697345,147.9,147.85,29.31346238]
[1750198317448,5.6408212,147.9,147.85,29.31346238]
[1750198317648,5.6408212,147.89,147.85,23.67264118]
[1750198317855,174.04216157,147.92,147.85,23.67264118]
[1750198317856,5.6408212,147.87,147.85,6.76361176]
[1750198318439,5.6408212,147.87,147.84,6.76406926]
[1750198318948,5.6408212,147.88,147.84,29.31506362]
[1750198319349,5.6408212,147.88,147.84,23.67424242]
[1750198319655,31.6408212,147.89,147.84,29.31506362]
[1750198319852,10.68245229,147.88,147.84,29.31506362]
[1750198320041,5.6408212,147.87,147.84,23.67424242]
[1750198320656,10.68442809,147.88,147.84,23.67424242]
[1750198320840,5.6408212,147.88,147.85,6.04]
[1750198322350,5.6408212,147.89,147.85,6.04]
[1750198322550,5.6408212,147.89,147.86,6.76315433]
[1750198322946,5.6408212,147.88,147.86,6.76315433]
[1750198323753,10.68862836,147.87,147.85,6.04]
[1750198323953,10.68862836,147.86,147.85,6.04]
[1750198328276,5.04780716,147.86,147.85,12.80361176]
[1750198328659,5.05527703,147.87,147.85,12.80361176]
[1750198328866,5.6408212,147.88,147.85,12.80361176]
[1750198329063,5.05529824,147.87,147.85,12.80361176]
[1750198329374,5.6408212,147.88,147.85,12.80361176]
[1750198329575,5.6408212,147.88,147.85,29.71264118]
[1750198329753,5.05765299,147.87,147.85,29.71264118]
[1750198329957,5.6408212,147.88,147.85,29.71264118]
[1750198330374,5.6408212,147.86,147.85,6.76361176]
[1750198330588,5.6408212,147.86,147.84,6.04]
[1750198330589,10.69863183,147.86,147.84,6.04]
[1750198330765,10.69863183,147.85,147.84,6.04]
[1750198331163,10.98295497,147.85,147.84,6.04]
[1750198331357,16.76593774,147.85,147.84,6.04]
[1750198332179,23.5295495,147.85,147.84,6.04]
[1750198333571,11.12511654,147.85,147.84,6.04]
[1750198343799,5.34213377,147.85,147.84,6.04]
[1750198343984,10.98295497,147.85,147.84,6.04]
[1750198344168,68.17919836,147.85,147.8,6.76570897]
[1750198344375,5.6408212,147.81,147.79,12.80619007]
[1750198344573,5.6408212,147.8,147.79,12.80619007]
[1750198344981,10.69548488,147.8,147.79,6.04]
[1750198345290,5.6408212,147.8,147.79,6.04]
[1750198345484,10.69548488,147.8,147.79,6.04]
[1750198345668,5.6408212,147.8,147.79,6.04]
[1750198345868,10.69548488,147.8,147.79,6.04]
[1750198346083,5.6408212,147.8,147.79,6.04]
[1750198346279,10.69548488,147.8,147.79,6.04]
[1750198346495,5.6408212,147.8,147.79,6.04]
[1750198346784,10.69548488,147.8,147.79,6.04]
[1750198346994,5.6408212,147.8,147.79,6.04]
[1750198347292,5.6408212,147.8,147.79,12.80635766]